bitfinex/quotes_ETHUSD_20241103
["timestamp","ask_amount","ask_price","bid_price","bid_amount"]
[1730649396421,5.42848606,2443.8,2442.9,0.8049]
[1730649396719,4.0926,2443.5,2442.9,8.9917]
[1730649396870,4.09241,2443.6,2442.9,0.8049]
[1730649397073,4.09278,2443.4,2442.9,0.8049]
[1730649397496,4.09278,2443.4,2442.0,4.16640089]
[1730649397497,4.09324,2443.1,2442.5,0.8049]
[1730649397714,4.09375,2442.8,2442.5,0.8049]
[1730649397923,4.09343,2443.0,2442.5,0.8049]
[1730649398276,4.0935,2442.9,2442.5,0.8049]
[1730649399121,4.09361,2442.9,2442.5,0.8049]
[1730649399411,4.09414,2442.6,2442.1,0.8049]
[1730649399618,0.409361,2442.9,2442.2,4.09465]
[1730649399619,4.09385,2442.7,2442.2,4.09465]
[1730649400376,4.09378,2442.8,2442.2,4.09457]
[1730649400576,4.09378,2442.8,2442.1,0.8049]
[1730649400811,8.18788,2442.7,2442.1,0.8049]
[1730649401015,4.0941,2442.6,2442.1,0.8049]
[1730649401182,4.09421,2442.5,2442.1,0.8049]
[1730649402075,4.09422,2442.5,2442.1,0.8049]
[1730649402354,4.09445,2442.4,2442.1,0.8049]
[1730649402850,4.09422,2442.5,2442.1,0.8049]
[1730649403163,4.0945,2442.3,2442.1,0.8049]
[1730649403310,8.18853,2442.5,2442.1,0.8049]
[1730649403514,4.09441,2442.4,2442.1,0.8049]
[1730649403737,4.09453,2442.3,2442.1,0.8049]
[1730649404251,8.18858,2442.5,2442.1,0.8049]
[1730649404421,4.09441,2442.4,2442.1,0.8049]
[1730649404759,4.09427,2442.5,2442.1,0.8049]
[1730649405115,4.09395,2442.7,2442.1,1.294903]
[1730649405335,4.0936,2442.9,2442.1,0.8049]
[1730649405533,2.13624266,2443.2,2442.7,4.09374]
[1730649405765,4.09302,2443.2,2442.8,0.8049]
[1730649405934,4.09292,2443.3,2442.8,0.8049]
[1730649406450,4.09301,2443.2,2442.8,0.8049]
[1730649406642,4.09292,2443.3,2442.8,0.8049]
[1730649406837,8.18583,2443.3,2442.8,0.8049]
[1730649407357,8.18584,2443.3,2442.8,0.8049]
[1730649407650,4.09291,2443.3,2442.8,0.8049]
[1730649407950,4.09301,2443.2,2442.8,0.8049]
[1730649409154,4.09291,2443.3,2442.8,0.8049]
[1730649409378,4.09283,2443.3,2442.8,1.294762]
[1730649409944,4.09283,2443.3,2442.8,0.8049]
[1730649410144,8.18575,2443.3,2442.8,0.8049]
[1730649410340,4.09313,2443.2,2442.8,0.8049]
[1730649410784,4.09335,2443.0,2442.8,0.8049]
[1730649410971,4.09335,2443.0,2442.5,4.09413]
[1730649411457,4.09367,2442.8,2442.4,0.7566]
[1730649411658,4.09351,2442.9,2442.4,4.85085]
[1730649411876,4.09338,2443.0,2442.5,4.09405]
[1730649412242,4.09338,2443.0,2442.4,9.839593]
[1730649412459,8.1868,2443.0,2442.4,5.745343]
[1730649412658,0.85449706,2443.2,2442.5,0.08188391]
[1730649412982,4.70899413,2443.5,2442.5,0.08188391]
[1730649412983,4.09275,2443.4,2442.9,0.7566]
[1730649413191,4.09284,2443.3,2442.9,0.7566]
[1730649413343,4.09275,2443.4,2442.9,4.85005]
[1730649413540,4.09275,2443.4,2442.9,0.7566]
[1730649413774,4.09275,2443.4,2442.6,4.09394]
[1730649413775,0.56,2442.9,2441.8,0.7566]
[1730649413981,0.85561376,2442.6,2442.1,4.09475]
[1730649414184,0.85561376,2442.6,2441.8,0.7566]
[1730649414185,4.09432,2442.5,2441.8,0.7566]
[1730649414347,4.09413,2442.6,2441.9,4.09517]
[1730649414547,4.09413,2442.6,2442.0,4.09494]
[1730649414851,0.85561376,2442.7,2442.0,0.894671]
[1730649415077,8.18808,2442.6,2442.0,4.989561]
[1730649415246,4.09425,2442.5,2442.0,0.894671]
[1730649415443,4.09425,2442.5,2442.0,4.989631]
[1730649415949,4.09399,2442.6,2442.0,4.989631]
[1730649416300,4.09392,2442.7,2442.2,4.85118]
[1730649417583,4.09377,2442.8,2442.3,4.09442]
[1730649417920,4.94935376,2442.8,2442.3,4.09441]
[1730649418137,0.85561376,2442.9,2442.2,0.7566]
[1730649418448,4.09358,2442.9,2442.3,4.09439]
[1730649418719,4.09358,2442.9,2442.4,0.485099]
[1730649418920,4.09334,2443.0,2442.5,4.09413]
[1730649419079,4.0935,2442.9,2442.6,0.7566]
[1730649419413,4.09368,2442.8,2442.6,0.7566]
[1730649420124,4.94896376,2443.0,2442.6,0.7566]
[1730649420616,9.04241376,2443.0,2442.6,0.7566]
[1730649420834,4.09351,2442.9,2442.6,0.7566]
[1730649420995,4.09366,2442.8,2442.6,0.7566]
[1730649421198,4.94905376,2443.0,2442.6,0.7566]
[1730649421508,4.94904376,2443.0,2442.6,1.241691]
[1730649421698,8.18689,2443.0,2442.6,0.7566]
[1730649421898,3.09343,2443.0,2442.6,0.7566]
[1730649422095,4.09365,2442.9,2442.6,0.7566]
[1730649422807,8.18726,2442.9,2442.6,0.7566]
[1730649423009,4.09361,2442.9,2442.6,0.7566]
[1730649423342,8.18724,2442.9,2442.6,0.7566]
[1730649423628,1.2817456,2443.1,2442.6,5.33566]
[1730649423629,0.85561376,2443.1,2442.6,5.33566]
[1730649423847,0.85561376,2443.3,2442.6,1.24169]
[1730649424005,0.85561376,2443.3,2443.1,0.7524]
[1730649424210,0.85561376,2443.5,2443.1,4.84553]
[1730649424410,0.85561376,2443.7,2443.1,1.236953]
[1730649424669,0.85561376,2443.9,2443.5,0.7524]
[1730649424880,4.94759376,2443.8,2443.5,0.7524]
[1730649425172,9.03967376,2443.8,2443.5,0.7524]
[1730649425340,0.85561376,2443.7,2443.5,0.7524]
[1730649425533,4.94777376,2443.7,2443.5,0.7524]
[1730649425735,4.94759376,2443.8,2443.5,0.7524]
[1730649425931,0.85561376,2443.8,2443.2,0.7524]
[1730649426128,4.09243,2443.6,2443.2,0.7524]
[1730649426632,4.09249,2443.5,2443.0,4.09319]
[1730649427267,4.94804376,2443.6,2443.0,8.18642]
[1730649427579,1.2817456,2443.7,2443.4,0.7524]
[1730649427580,0.85561376,2443.7,2443.4,0.7524]
[1730649427740,4.94771376,2443.8,2443.4,0.7524]
[1730649428334,4.94768376,2443.8,2443.4,0.7524]
[1730649428934,0.85561376,2443.8,2443.4,4.84495]
[1730649429142,0.85561376,2443.8,2443.5,4.986206]
[1730649429340,4.94749376,2443.9,2443.5,0.893766]
[1730649429650,4.94773376,2443.8,2443.4,0.7524]
[1730649429856,0.85561376,2443.9,2443.4,0.7524]
[1730649430376,4.94772376,2443.8,2443.4,0.7524]
[1730649430684,9.03980376,2443.8,2443.4,0.7524]
[1730649430891,4.94769376,2443.8,2443.4,0.7524]
[1730649431381,4.94743376,2443.9,2443.4,4.84504]
[1730649432224,0.85561376,2443.8,2443.4,4.84504]
[1730649432382,0.85561376,2443.9,2443.6,4.09221]
[1730649432563,4.94699376,2444.2,2443.6,4.09223]
[1730649432896,4.94699376,2444.2,2443.5,4.09249]
[1730649432897,0.85561376,2444.1,2443.5,4.09249]
[1730649433044,0.85561376,2444.1,2443.6,4.09232]
[1730649433380,4.94735376,2444.0,2443.6,0.9019052]
[1730649433584,4.94735376,2444.0,2443.5,4.09235]
[1730649433783,0.85561376,2444.1,2443.6,4.09221]
[1730649433990,4.09167,2444.0,2443.4,0.7524]
[1730649434148,4.09167,2444.0,2443.5,4.09244]
[1730649434581,0.85561376,2444.1,2443.6,4.09231]
[1730649434843,1.2817456,2444.2,2443.6,4.09231]
[1730649434844,0.85561376,2444.2,2443.9,4.09178]
[1730649435044,5.3727356,2444.4,2443.8,0.7524]
[1730649435045,0.85561376,2444.3,2443.8,0.7524]
[1730649435245,0.85561376,2444.4,2444.0,4.09151]
[1730649435486,6.22819936,2444.5,2444.0,4.09151]
[1730649435794,4.94659376,2444.4,2443.8,4.84422]
[1730649436005,4.94659376,2444.4,2443.9,4.576222]
[1730649436416,4.94645376,2444.5,2443.9,4.576222]
[1730649436705,4.09098,2444.4,2443.9,4.576222]
[1730649437008,4.94645376,2444.5,2444.0,4.09161]
[1730649437168,4.94645376,2444.5,2443.9,4.576222]
[1730649437370,4.08973688,2444.4,2443.9,4.576222]
[1730649437570,4.09106,2444.4,2443.9,4.576222]
[1730649438220,0.85561376,2444.5,2443.8,0.7524]
[1730649438373,0.85561376,2444.5,2443.7,4.09204]
[1730649438374,6.32599376,2444.4,2443.5,0.7934]
[1730649438715,8.18248,2444.3,2443.8,4.09198]
[1730649438908,4.09136,2444.2,2443.6,4.09216]
[1730649439204,4.09136,2444.2,2443.6,4.580716]
[1730649439411,4.09124,2444.3,2443.6,0.488556]
[1730649439613,4.09084,2444.5,2444.0,4.09156]
[1730649439912,4.09084,2444.5,2444.0,4.909897]
[1730649440110,4.09078,2444.6,2444.0,0.818337]
[1730649440285,4.09083,2444.5,2444.1,4.09148]
[1730649440488,4.09068,2444.6,2444.2,0.7934]
[1730649440689,4.94620376,2444.7,2444.2,0.7934]
[1730649440874,4.94620376,2444.7,2444.2,4.88462]
[1730649440875,4.09059,2444.7,2444.2,4.88462]
[1730649441079,4.09059,2444.7,2443.9,0.7934]
[1730649441080,1.4784087,2444.7,2443.9,0.7934]
[1730649441308,4.09156,2444.1,2443.9,0.7934]
[1730649441822,4.09139,2444.2,2443.9,0.7934]
[1730649441992,4.09103,2444.4,2443.9,0.7934]
[1730649442173,0.85561376,2444.6,2443.9,0.7934]
[1730649442174,4.09133,2444.2,2443.9,0.7934]
[1730649442511,4.09146,2444.2,2443.7,4.88554]
[1730649442913,8.18292,2444.2,2443.7,4.88554]
[1730649443306,4.09122,2444.3,2443.8,4.09189]
[1730649443510,4.0911,2444.4,2443.8,4.09189]
[1730649443677,2.1111456,2444.7,2444.3,4.09103]
[1730649443678,0.85561376,2444.7,2444.3,4.09103]
[1730649443882,4.09039,2444.8,2444.1,4.09146]
[1730649444086,5.00564896,2445.0,2444.4,4.09094]
[1730649444288,4.09017,2444.9,2444.5,0.7934]
[1730649444704,4.09017,2444.9,2444.5,4.8842]
[1730649444904,4.09017,2444.9,2444.5,0.7934]
[1730649445419,8.18044,2444.9,2444.5,0.7934]
[1730649445722,4.09017,2444.9,2444.5,0.7934]
[1730649446080,0.0599652,2445.0,2444.5,0.7934]
[1730649446275,0.0599652,2445.0,2444.6,4.09052]
[1730649447022,0.0599652,2445.0,2444.5,1.29000872]
[1730649447204,4.09044,2444.8,2444.5,0.7934]
[1730649447511,4.09023,2444.9,2444.5,0.7934]
[1730649447717,8.18052,2444.9,2444.5,0.7934]
[1730649448016,4.09023,2444.9,2444.5,0.7934]
[1730649448231,8.18051,2444.9,2444.5,0.7934]
[1730649448393,4.09023,2444.9,2444.5,0.7934]
[1730649448806,8.18046,2444.9,2444.5,0.7934]
[1730649449215,4.09023,2444.9,2444.5,0.7934]
[1730649449434,4.09023,2444.9,2444.5,4.8842]
[1730649449721,4.09023,2444.9,2444.5,0.7934]
[1730649450284,8.18048,2444.9,2444.5,0.7934]
[1730649450822,8.18047,2444.9,2444.5,0.7934]
[1730649451041,4.09023,2444.9,2444.5,0.7934]
[1730649451221,0.0599652,2445.0,2444.5,4.88413]
[1730649451532,4.1499752,2445.0,2444.5,4.88413]
[1730649451737,4.1499752,2445.0,2444.5,4.88412]
[1730649452900,4.09022,2444.9,2444.5,0.7934]
[1730649453100,4.1499552,2445.0,2444.5,4.88409]
[1730649453707,4.09025,2444.9,2444.5,0.7934]
[1730649453936,8.18051,2444.9,2444.5,0.7934]
[1730649454096,4.09025,2444.9,2444.5,4.88418]
[1730649454538,4.09025,2444.9,2444.5,0.7934]
[1730649454794,4.1500252,2445.0,2444.5,4.88419]
[1730649454912,0.0599652,2445.0,2444.6,4.09062]
[1730649455110,0.0559652,2445.0,2444.6,4.09062]
[1730649455501,4.09037,2444.8,2444.5,0.7934]
[1730649455698,4.09023,2444.9,2444.5,0.7934]
[1730649456344,4.09023,2444.9,2444.5,4.88419]
[1730649456860,0.0559652,2445.0,2444.7,4.09036]
[1730649456998,0.0559652,2445.0,2444.6,0.7557]
[1730649457203,4.09048,2444.7,2444.6,0.7557]
[1730649457462,4.09115,2444.3,2444.1,0.7557]
[1730649457809,8.18244,2444.3,2444.1,0.7557]
[1730649458119,4.09131,2444.2,2443.8,0.7557]
[1730649458321,4.09131,2444.2,2443.8,1.7394903]
[1730649458552,4.09182,2443.9,2443.3,4.09278]
[1730649458872,4.09202,2443.8,2443.4,0.7557]
[1730649459074,4.09182,2443.9,2443.4,4.84835]
[1730649459244,4.09157,2444.1,2443.5,4.09236]
[1730649459448,4.09165,2444.0,2443.5,4.986431]
[1730649460557,4.09139,2444.2,2443.7,4.09207]
[1730649460756,4.09093,2444.5,2443.8,0.7557]
[1730649460968,4.09089,2444.5,2444.0,4.09164]
[1730649461180,4.09089,2444.5,2444.0,4.09156]
[1730649461367,8.1818,2444.5,2444.0,4.985452]
[1730649461538,8.1818,2444.5,2444.1,4.09144]
[1730649461539,4.09089,2444.5,2444.1,4.09144]
[1730649461740,4.09065,2444.6,2444.1,4.09144]
[1730649462081,4.09025,2444.9,2444.4,4.0909]
[1730649462387,0.0559652,2445.0,2444.5,4.09073]
[1730649462588,4.09017,2444.9,2444.3,4.84671]
[1730649462880,4.09017,2444.9,2444.4,4.575601]
[1730649463182,4.1459452,2445.0,2444.5,4.09071]
[1730649463488,4.1459452,2445.0,2444.5,8.18143]
[1730649463690,4.1459452,2445.0,2444.6,4.09056]
[1730649463691,0.0559652,2445.0,2444.6,4.09056]
[1730649463852,0.0559652,2445.0,2444.7,0.7557]
[1730649464178,0.0559652,2445.0,2444.7,5.330779]
[1730649465080,0.0559652,2445.0,2444.8,4.09026]
[1730649467311,0.0559652,2445.0,2444.7,5.330779]
[1730649467312,0.0559652,2445.0,2444.7,1.240329]
[1730649467590,0.0559652,2445.0,2444.5,4.09081]
[1730649468087,0.0559652,2445.0,2444.6,4.09064]
[1730649468287,0.0559652,2445.0,2444.7,4.09046]
[1730649469308,0.0559652,2445.0,2444.6,4.09063]
[1730649469995,0.0559652,2445.0,2444.7,4.17228447]
[1730649470165,0.0559652,2445.0,2444.9,0.8136]
[1730649470497,0.0559652,2445.0,2444.8,4.09022]
[1730649470701,0.0559652,2445.0,2444.8,8.18044]
[1730649470862,0.0559652,2445.0,2444.9,0.8136]
[1730649471058,0.0559652,2445.0,2444.9,4.90374]
[1730649471258,0.0559652,2445.0,2444.9,5.803136]
[1730649474282,0.0559652,2445.0,2444.9,5.8849286]
[1730649474484,0.0559652,2445.0,2444.9,5.803136]
[1730649476702,4.09014,2444.9,2444.2,0.8136]
[1730649476919,4.09052,2444.7,2444.2,4.90489]
[1730649477589,0.0559652,2445.0,2444.2,0.8136]
[1730649477811,4.09031,2444.8,2444.2,0.8136]
[1730649478009,4.94575376,2444.9,2443.8,4.09186]
[1730649478223,4.94575376,2444.9,2444.0,4.09162]
[1730649478224,4.09089,2444.5,2444.0,4.09162]
[1730649478920,4.09089,2444.5,2444.0,4.09156]
[1730649479121,4.09089,2444.5,2443.9,1.222786]
[1730649479423,0.7823,2444.7,2443.9,1.222786]
[1730649479627,4.09113,2444.4,2443.9,0.8136]
[1730649479924,4.09113,2444.4,2443.9,4.9054]
[1730649480623,4.09116,2444.3,2443.9,0.8136]
[1730649480826,5.72850376,2444.7,2443.7,0.7729]
[1730649481177,4.0909,2444.5,2444.0,4.57250678]
[1730649481302,4.0909,2444.5,2444.0,5.02975746]
[1730649481507,4.0909,2444.5,2444.0,9.12126746]
[1730649482035,5.72851376,2444.7,2444.1,4.09147]
[1730649482036,4.09064,2444.6,2444.1,4.09147]
[1730649482246,4.0906,2444.7,2444.2,4.0913]
[1730649482400,4.94593376,2444.8,2444.2,4.8642]
[1730649482603,4.09056,2444.7,2444.2,4.8642]
[1730649482841,9.03640376,2444.8,2444.2,4.86412]
[1730649483143,4.09052,2444.7,2444.2,4.86412]
[1730649483440,4.09092,2444.5,2443.9,0.7729]
[1730649483613,4.09125,2444.3,2443.9,0.7729]
[1730649483821,4.09081,2444.5,2443.9,0.7729]
[1730649484149,4.09142,2444.2,2443.6,4.94697507]
[1730649484313,4.09142,2444.2,2443.6,9.03916507]
[1730649484517,4.843,2444.4,2443.6,1.67681651]
[1730649484881,4.09129,2444.3,2443.6,4.8651]
[1730649485009,4.09143,2444.2,2443.7,4.09203]
[1730649485406,4.09143,2444.2,2443.8,4.09196]
[1730649485628,4.09143,2444.2,2443.6,4.8651]
[1730649485830,4.09143,2444.2,2443.7,4.09207]
[1730649486147,4.09143,2444.2,2443.7,4.987787]
[1730649486329,4.09143,2444.2,2443.7,5.06962042]
[1730649486715,4.09116,2444.3,2443.8,4.09187]
[1730649486915,4.84291,2444.4,2443.9,4.09173]
[1730649487228,0.85561376,2444.5,2444.1,4.0914]
[1730649487743,0.85561376,2444.5,2444.2,4.09116]
[1730649488330,0.85561376,2444.5,2444.3,0.7729]
[1730649488511,0.7519,2444.4,2444.0,4.09161]
[1730649488728,0.85561376,2444.5,2444.1,4.09137]
[1730649489242,0.85561376,2444.5,2444.1,4.986958]
[1730649489539,0.85561376,2444.5,2444.2,4.09131]
[1730649490808,0.85561376,2444.5,2444.2,4.09119]
[1730649491303,0.85561376,2444.5,2444.4,4.09098]
[1730649491508,0.85561376,2444.5,2444.2,4.09123]
[1730649491743,0.85561376,2444.5,2444.3,4.5897918]
[1730649492668,0.85561376,2444.5,2444.2,4.0913]
[1730649492867,0.85561376,2444.5,2444.0,4.86451]
[1730649493291,4.94650376,2444.5,2444.0,4.86446]
[1730649493468,4.94650376,2444.5,2444.0,4.86443]
[1730649493665,4.09099,2444.4,2444.0,4.86443]
[1730649493904,0.85561376,2444.5,2444.0,5.760063]
[1730649494089,0.85561376,2444.5,2444.1,4.09142]
[1730649494669,0.85561376,2444.5,2444.2,4.09127]
[1730649495877,0.85561376,2444.6,2444.1,4.09146]
[1730649496107,4.94625376,2444.6,2444.1,4.09146]
[1730649497094,4.94625376,2444.6,2444.2,4.09129]
[1730649497811,0.85561376,2444.6,2444.2,4.09129]
[1730649498216,4.94636376,2444.6,2444.1,4.09148]
[1730649498703,4.94636376,2444.6,2444.1,4.09141]
[1730649498903,0.85561376,2444.6,2444.1,4.09141]
[1730649499083,4.09082,2444.5,2444.1,4.09141]
[1730649499413,4.94627376,2444.6,2444.1,4.09138]
[1730649499582,4.09083,2444.5,2444.1,4.6673713]
[1730649499936,4.09083,2444.5,2444.1,0.5759913]
[1730649500112,1.61411376,2444.6,2444.0,4.09163]
[1730649500272,4.94622376,2444.7,2444.2,4.09122]
[1730649500474,0.85561376,2444.8,2444.5,4.09071]
[1730649500675,0.91157896,2445.0,2444.5,4.09071]
[1730649500986,0.85561376,2444.9,2444.5,4.09071]
[1730649501194,4.09026,2444.9,2444.5,0.409071]
[1730649501370,4.09026,2444.9,2444.3,4.09101]
[1730649501371,4.09043,2444.8,2444.3,4.09101]
[1730649501575,0.85561376,2444.8,2444.3,4.09101]
[1730649501775,8.18054,2444.9,2444.4,4.09095]
[1730649502073,9.03615376,2444.9,2444.4,4.09095]
[1730649502279,4.94587376,2444.9,2444.4,4.09095]
[1730649502500,4.94587376,2444.9,2444.5,4.09078]
[1730649502501,4.09026,2444.9,2444.5,4.09078]
[1730649502695,4.94587376,2444.9,2444.4,4.909146]
[1730649503024,4.09026,2444.9,2444.4,4.909086]
[1730649503198,8.18054,2444.9,2444.4,4.09088]
[1730649503395,4.09032,2444.8,2444.4,4.09088]
[1730649503601,4.09032,2444.8,2444.3,4.09113]
[1730649504128,4.0906,2444.7,2444.0,0.7645]
[1730649504327,4.0906,2444.7,2444.2,4.09122]
[1730649504494,4.0906,2444.7,2444.2,4.985944]
[1730649505101,4.0906,2444.7,2444.2,9.077164]
[1730649505486,4.0906,2444.7,2444.2,4.985944]
[1730649505686,8.18119,2444.7,2444.2,4.985924]
[1730649506025,4.09056,2444.7,2444.2,4.985924]
[1730649506397,4.09068,2444.6,2444.2,4.985924]
[1730649506810,1.61411376,2444.7,2444.0,0.7645]
[1730649507013,4.94650376,2444.5,2444.0,4.09165]
[1730649507338,0.85561376,2444.5,2443.9,0.08181968]
[1730649507629,9.03781376,2444.4,2443.9,4.09177]
[1730649507934,0.85561376,2444.2,2443.8,4.85638]
[1730649508131,0.85561376,2444.2,2443.9,4.09171]
[1730649508334,0.85561376,2444.2,2443.8,4.09188]
[1730649509036,4.94677376,2444.3,2443.8,8.18376]
[1730649509227,4.94677376,2444.3,2443.8,4.09188]
[1730649509228,0.85561376,2444.3,2443.8,4.09188]
[1730649509535,0.85561376,2444.2,2443.8,4.09186]
[1730649509687,4.94676376,2444.3,2443.8,4.09186]
[1730649509884,0.85561376,2444.3,2443.9,4.0918]
[1730649510085,0.85561376,2444.4,2444.0,4.17344937]
[1730649510299,5.3725756,2444.5,2444.1,4.09145]
[1730649510300,0.85561376,2444.5,2444.1,4.09145]
[1730649510533,4.94625376,2444.6,2444.1,4.09145]
[1730649510738,4.09082,2444.5,2444.0,4.09162]
[1730649510906,4.09082,2444.5,2444.1,4.09146]
[1730649511308,0.85561376,2444.6,2444.2,4.09131]
[1730649511509,4.94633376,2444.6,2444.1,4.09147]
[1730649512045,0.85561376,2444.6,2444.2,4.09131]
[1730649512227,5.70461376,2444.7,2444.3,4.09108]
[1730649512544,5.70461376,2444.7,2444.3,4.985569]
[1730649512896,0.85561376,2444.7,2444.5,4.09068]
[1730649513106,1.67731376,2444.9,2444.5,4.09068]
[1730649513300,1.67731376,2444.9,2444.4,4.09098]
[1730649513512,5.76747376,2444.9,2444.4,4.09098]
[1730649513712,5.76747376,2444.9,2444.5,0.9076559]
[1730649513913,0.8217,2444.9,2444.5,0.9076559]
[1730649514151,5.00157896,2445.0,2444.5,4.09073]
[1730649514442,0.91157896,2445.0,2444.6,4.09055]
[1730649515350,0.0559652,2445.0,2444.8,4.09017]
[1730649515516,0.0559652,2445.0,2444.7,4.09046]
[1730649515713,0.0559652,2445.0,2444.7,8.18084]
[1730649515911,0.0559652,2445.0,2444.8,0.894334]
[1730649516134,0.0559652,2445.0,2444.8,4.984634]
[1730649516334,0.0559652,2445.0,2444.9,4.09014]
[1730649516515,0.0559652,2445.0,2444.8,4.984644]
[1730649517950,0.0559652,2445.0,2444.8,0.894334]
[1730649518116,0.0559652,2445.0,2444.6,4.09061]
[1730649518319,0.8217,2444.9,2444.3,4.85357]
[1730649518519,2.96254813,2444.9,2444.0,4.09153]
[1730649518816,0.85633925,2444.6,2444.2,4.09116]
[1730649519017,0.85633925,2444.6,2444.3,4.09114]
[1730649519401,0.85633925,2444.6,2444.3,4.90937]
[1730649519647,0.85633925,2444.6,2444.4,4.09094]
[1730649519868,0.85633925,2444.8,2444.4,4.09098]
[1730649520006,0.85633925,2444.7,2444.4,4.09098]
[1730649520521,0.85633925,2444.7,2444.6,4.09064]
[1730649520721,1.7126417,2444.9,2444.8,4.09031]
[1730649520722,0.85633925,2444.9,2444.8,4.09031]
[1730649520949,0.91230445,2445.0,2444.8,4.09031]
[1730649521149,0.91230445,2445.0,2444.7,4.09046]
[1730649521712,0.91230445,2445.0,2444.6,0.485314]
[1730649521713,0.0559652,2445.0,2444.6,0.485314]
[1730649521933,0.0559652,2445.0,2444.9,4.09014]
[1730649522250,0.0559652,2445.0,2444.9,0.409014]
[1730649522495,0.91230445,2445.0,2444.9,0.409014]
[1730649522622,0.91230445,2445.0,2444.9,4.499154]
[1730649523026,0.91230445,2445.0,2444.9,0.409014]
[1730649523425,0.91230445,2445.0,2444.8,4.09022]
[1730649524223,0.91230445,2445.0,2444.9,4.09014]
[1730649524666,0.0559652,2445.0,2444.9,4.09014]
[1730649524966,0.0559652,2445.0,2444.9,7.93443505]
[1730649525275,0.0559652,2445.0,2444.9,8.05283198]
[1730649525472,0.0559652,2445.0,2444.9,9.26913718]
[1730649526350,0.85633925,2445.8,2445.6,4.08881]
[1730649526548,0.85633925,2445.9,2445.7,4.0888]
[1730649527297,0.85633925,2445.9,2445.8,4.08864]
[1730649527448,0.85633925,2446.0,2445.8,4.08864]
[1730649527885,1.67803925,2446.2,2445.8,4.08864]
[1730649528048,0.85633925,2446.1,2445.8,4.08864]
[1730649528480,1.67803925,2446.2,2445.8,4.08864]
[1730649528666,0.8217,2446.2,2445.8,4.08863]
[1730649528862,0.8217,2446.2,2445.7,4.0888]
[1730649529196,1.67803925,2446.2,2445.8,4.08859]
[1730649529563,0.8217,2446.2,2445.8,4.08859]
[1730649530098,0.8217,2446.2,2445.7,4.57896]
[1730649530308,0.8217,2446.2,2444.6,5.41944053]
[1730649530309,0.8126,2445.7,2445.1,4.9038]
[1730649530462,0.51941591,2446.1,2445.5,4.08913]
[1730649530463,0.8126,2445.9,2445.5,4.08913]
[1730649530650,4.90111,2445.9,2445.3,4.08947]
[1730649530986,4.08867,2445.8,2445.3,8.17884]
[1730649531195,4.08867,2445.8,2445.3,4.08937]
[1730649531384,4.08867,2445.8,2445.3,8.17876]
[1730649531548,4.08867,2445.8,2445.3,4.08937]
[1730649531747,4.08883,2445.7,2445.3,4.08937]
[1730649532052,4.08865,2445.8,2445.3,4.08937]
[1730649532680,4.08865,2445.8,2445.3,8.17876]
[1730649532880,4.08865,2445.8,2445.3,4.08937]
[1730649533294,4.0888,2445.7,2445.3,4.08937]
[1730649533477,4.08865,2445.8,2445.3,8.17876]
[1730649533685,0.8126,2445.9,2445.3,4.08937]
[1730649533867,4.08865,2445.8,2445.4,4.08928]
[1730649534195,0.8126,2445.9,2445.4,4.08928]
[1730649534594,0.8126,2445.9,2445.1,0.61201052]
[1730649534595,4.08889,2445.7,2445.1,4.70168052]
[1730649534759,4.08907,2445.6,2445.1,4.08967]
[1730649534957,2.14084813,2446.0,2445.2,0.90588834]
[1730649535183,4.90086,2446.1,2445.5,4.08902]
[1730649535462,4.90086,2446.1,2445.6,4.08897]
[1730649535790,8.98915,2446.1,2445.5,4.089]
[1730649536085,4.08838,2446.0,2445.5,4.089]
[1730649537000,5.89139545,2446.1,2445.5,4.08907]
[1730649537158,4.0884,2446.0,2445.5,4.08907]
[1730649537605,5.89139545,2446.1,2445.6,4.08893]
[1730649538100,5.89139545,2446.1,2445.6,4.0888]
[1730649538101,9.97967545,2446.1,2445.6,4.0888]
[1730649538257,5.89139545,2446.1,2445.6,4.0888]
[1730649538658,8.98908,2446.1,2445.6,4.0888]
[1730649538897,4.90083,2446.1,2445.6,4.0888]
[1730649539378,8.98907,2446.1,2445.6,4.0888]
[1730649539579,8.98905,2446.1,2445.6,4.08895]
[1730649539857,4.08831,2446.0,2445.6,4.08895]
[1730649540102,0.8126,2446.1,2445.6,8.17781]
[1730649540402,0.0599652,2446.3,2445.9,4.08845]
[1730649540815,0.0599652,2446.3,2445.9,4.08838]
[1730649541177,0.0599652,2446.3,2445.9,8.17677]
[1730649541390,0.0599652,2446.3,2445.9,4.08838]
[1730649542261,4.64376872,2446.3,2445.7,4.0887]
[1730649542564,0.786,2445.9,2445.5,4.08901]
[1730649542761,0.786,2445.9,2445.2,0.7611]
[1730649542974,0.786,2445.9,2445.6,4.08888]
[1730649543170,0.786,2446.1,2445.3,4.1711223]
[1730649543398,0.786,2446.1,2445.4,0.49322223]
[1730649543702,0.786,2446.1,2445.7,8.17749]
[1730649543885,4.1478052,2446.3,2445.9,4.08838]
[1730649544084,4.9338052,2446.3,2445.8,4.08855]
[1730649544559,0.8459652,2446.3,2445.6,4.08889]
[1730649544910,4.9338652,2446.3,2445.8,4.08852]
[1730649545275,0.8459652,2446.3,2446.0,4.0882]
[1730649545973,0.0599652,2446.3,2446.0,4.0882]
[1730649546363,0.0599652,2446.3,2446.0,4.08819]
[1730649548107,0.786,2446.2,2445.8,4.08862]
[1730649548265,0.786,2446.2,2445.9,4.08839]
[1730649548464,0.786,2446.2,2445.8,4.08862]
[1730649548713,0.786,2446.2,2445.9,4.08846]
[1730649549507,0.786,2446.2,2445.7,4.08867]
[1730649549723,4.87402,2446.2,2445.6,0.45821122]
[1730649549922,4.87402,2446.2,2445.7,4.08868]
[1730649549923,4.87399,2446.2,2445.7,4.08868]
[1730649551209,4.87399,2446.2,2445.5,4.08908]
[1730649551210,4.08824,2446.1,2445.3,0.7611]
[1730649551412,4.08824,2446.1,2445.6,4.08894]
[1730649551602,8.17647,2446.1,2445.6,4.08894]